[Event "11th LCC FIDE Open 2019"]
[Site "London"]
[Date "2019.12.05"]
[Round "8.43"]
[White "Pollack, Oscar"]
[Black "Ahn, Sungmin"]
[Result "1-0"]
[ECO "B42"]
[WhiteElo "2112"]
[BlackElo "1780"]
[Annotator "NA"]
[PlyCount "93"]
[EventDate "2019.11.29"]
[EventType "swiss"]
[EventCountry "ENG"]
[SourceTitle "playchess.com"]
[Source "ChessBase"]
[SourceQuality "1"]
[TimeControl "40/5400+30:1800+30"]

1. e4 {[%emt 0:01:24]} c5 {[%emt 0:00:00]} 2. Nf3 {[%emt 0:00:03]} e6 {[%emt 0:00:00]} 3. d4 {[%emt 0:00:04]} cxd4 {[%emt 0:00:00]} 4. Nxd4 {[%emt 0:00:05]} a6 {[%emt 0:00:00]} 5. Bd3 {[%emt 0:00:04]} Nf6 {[%emt 0:00:00]} 6. O-O {[%emt 0:00:28]} Qc7 {[%emt 0:00:00]} 7. Qe2 {[%emt 0:01:01]} d6 {[%emt 0:01:24]} 8. c4 {[%emt 0:00:23]} Nbd7 {[%emt 0:01:17]} 9. Nc3 {[%emt 0:00:32]} Ne5 {[%emt 0:05:00]} 10. f4 {[%emt 0:05:24]} Nxd3 {[%emt 0:00:50]} 11. Qxd3 {[%emt 0:00:01]} Be7 {[%emt 0:07:58]} 12. h3 {[%emt 0:05:01]} h5 {[%emt 0:07:37]} 13. f5 {[%emt 0:03:02]} e5 {[%emt 0:11:39]} 14. Nc2 {[%emt 0:00:25]} Bd7 {[%emt 0:00:59]} 15. Bg5 {[%emt 0:01:18]} Bc6 {[%emt 0:00:59]} 16. Bxf6 {[%emt 0:00:34]} Bxf6 {[%emt 0:00:32]} 17. Kh1 {[%emt 0:00:37]} Bg5 {[%emt 0:02:09]} 18. Nb4 {[%emt 0:01:07]} Rc8 {[%emt 0:20:55]} 19. b3 {[%emt 0:00:57]} h4 {[%emt 0:01:01]} 20. Rfd1 {[%emt 0:01:29]} Rh6 {[%emt 0:01:44]} 21. Nbd5 {[%emt 0:00:53]} Qd8 {[%emt 0:04:08]} 22. a4 {[%emt 0:01:03]} Kf8 {[%emt 0:01:25]} 23. a5 {[%emt 0:00:20]} Qe8 {[%emt 0:05:35]} 24. Nb6 {[%emt 0:02:14]} Rb8 {[%emt 0:01:06]} 25. b4 {[%emt 0:00:26]} Bd8 {[%emt 0:00:59]} 26. Nbd5 {[%emt 0:01:08]} Ra8 {[%emt 0:05:55]} 27. Ne3 {[%emt 0:03:12]} Bc7 {[%emt 0:01:30]} 28. b5 {[%emt 0:01:36]} Bd7 {[%emt 0:02:10]} 29. b6 {[%emt 0:01:20]} Bd8 {[%emt 0:01:16]} 30. Ng4 {[%emt 0:00:13]} Bc6 {[%emt 0:02:12]} 31. Nxh6 {[%emt 0:00:06]} gxh6 {[%emt 0:00:01]} 32. Qxd6+ {[%emt 0:00:28]} Kg7 {[%emt 0:00:10]} 33. Nd5 {[%emt 0:01:58]} Rc8 {[%emt 0:00:50]} 34. f6+ {[%emt 0:00:35]} Kh7 {[%emt 0:00:30]} 35. Rf1 {[%emt 0:00:49]} Bxd5 {[%emt 0:01:11]} 36. cxd5 {[%emt 0:00:49]} Rc2 {[%emt 0:00:11]} 37. Qa3 {[%emt 0:01:32]} Qg8 {[%emt 0:00:15]} 38. Qf3 {[%emt 0:00:06]} Kh8 {[%emt 0:00:43]} 39. Qg4 {[%emt 0:00:32]} Qxg4 {[%emt 0:00:26]} 40. hxg4 {[%emt 0:00:02]} Kh7 {[%emt 0:00:11]} 41. Rac1 {[%emt 0:30:12]} Rb2 {[%emt 0:31:55]} 42. Rc8 {[%emt 0:00:33]} Bxb6 {[%emt 0:00:06]} 43. axb6 {[%emt 0:00:01]} Rxb6 {[%emt 0:00:26]} 44. Rf5 {[%emt 0:00:22]} a5 {[%emt 0:00:12]} 45. Ra8 {[%emt 0:00:32]} Rb4 {[%emt 0:00:43]} 46. Rxe5 {[%emt 0:00:11]} a4 {[%emt 0:00:35]} 47. d6 {[%emt 0:00:04]} 1-0

[Event "11th LCC FIDE Open 2019"]
[Site "London"]
[Date "2019.12.05"]
[Round "8.44"]
[White "Ciocan, Maria-Alexandra"]
[Black "John, Joshua"]
[Result "1-0"]
[ECO "B31"]
[WhiteElo "2058"]
[BlackElo "1680"]
[Annotator "NA RC"]
[PlyCount "67"]
[EventDate "2019.11.29"]
[EventType "swiss"]
[EventCountry "ENG"]
[SourceTitle "playchess.com"]
[Source "ChessBase"]
[SourceQuality "1"]
[TimeControl "40/5400+30:1800+30"]

1. e4 {[%emt 0:01:27]} c5 {[%emt 0:00:00]} 2. Nf3 {[%emt 0:00:05]} Nc6 {[%emt 0:00:00]} 3. Bb5 {[%emt 0:00:10]} g6 {[%emt 0:03:54]} 4. Bxc6 {[%emt 0:00:18]} bxc6 {[%emt 0:00:12]} 5. O-O {[%emt 0:00:08]} Bg7 {[%emt 0:00:08]} 6. c3 {[%emt 0:00:35]} e5 {[%emt 0:03:55]} 7. Na3 {[%emt 0:04:09]} Ne7 {[%emt 0:04:25]} 8. d4 {[%emt 0:05:47]} cxd4 {[%emt 0:08:52]} 9. cxd4 {[%emt 0:04:02]} exd4 {[%emt 0:11:25]} 10. Nxd4 {[%emt 0:02:03]} O-O {[%emt 0:00:20]} 11. Re1 {[%emt 0:01:37]} Qb6 {[%emt 0:11:33]} 12. Nb3 {[%emt 0:04:25]} d5 {[%emt 0:07:31]} 13. Bg5 {[%emt 0:03:22]} f6 {[%emt 0:08:35]} 14. Be3 {[%emt 0:01:06]} Qc7 {[%emt 0:00:16]} 15. Bc5 {[%emt 0:09:23]} Rd8 {[%emt 0:10:48]} 16. exd5 {[%emt 0:13:53]} Nxd5 {[%emt 0:00:29]} 17. Nd4 {[%emt 0:00:39]} Bf8 {[%emt 0:04:18]} 18. Rc1 {[%emt 0:03:50]} Bxc5 {[%emt 0:03:05]} 19. Rxc5 {[%emt 0:00:05]} Bd7 {[%emt 0:00:11]} 20. Qc2 {[%emt 0:04:25]} Re8 {[%emt 0:03:51]} 21. Rd1 {[%emt 0:03:36]} Qe5 {[%emt 0:02:02]} 22. Qc1 {[%emt 0:02:42]} Rac8 {[%emt 0:04:24]} 23. Nc4 {[%emt 0:05:20]} Qe7 {[%emt 0:01:13]} 24. Na5 {[%emt 0:00:25]} Nf4 {[%emt 0:02:07]} 25. Qc4+ {[%emt 0:03:28]} Ne6 {[%emt 0:03:56]} 26. b4 {[%emt 0:02:36]} Kh8 {[%emt 0:00:52]} 27. Ndxc6 {[%emt 0:04:10]} Qf8 {[%emt 0:02:51]} 28. Rcd5 {[%emt 0:01:40]} Bxc6 {[%emt 0:00:22]} 29. Nxc6 {[%emt 0:00:06]} Nd8 {[%emt 0:00:54]} 30. b5 {[%emt 0:01:07]} Qf7 {[%emt 0:01:30]} 31. h3 {[%emt 0:02:14]} Nxc6 {[%emt 0:00:22]} 32. bxc6 {[%emt 0:00:09]} Qc7 {[%emt 0:00:07]} 33. Rd7 {[%emt 0:01:18]} Red8 {[%emt 0:01:08]} 34. Qf7 {[%emt 0:00:42]} 1-0

[Event "11th LCC FIDE Open 2019"]
[Site "London"]
[Date "2019.12.05"]
[Round "8.45"]
[White "Korning, Peter"]
[Black "Walker, Samuel A"]
[Result "0-1"]
[ECO "B21"]
[WhiteElo "1957"]
[BlackElo "2039"]
[Annotator "NA RC"]
[PlyCount "90"]
[EventDate "2019.11.29"]
[EventType "swiss"]
[EventCountry "ENG"]
[SourceTitle "playchess.com"]
[Source "ChessBase"]
[SourceQuality "1"]
[TimeControl "40/5400+30:1800+30"]

1. e4 {[%emt 0:00:00]} c5 {[%emt 0:00:00]} 2. d4 {[%emt 0:00:00]} cxd4 {[%emt 0:00:00]} 3. c3 {[%emt 0:00:00]} d3 {[%emt 0:00:32]} 4. Bxd3 {[%emt 0:00:00]} Nc6 {[%emt 0:00:04]} 5. c4 {[%emt 0:00:06]} Nf6 {[%emt 0:00:22]} 6. Nf3 {[%emt 0:00:45]} g6 {[%emt 0:00:37]} 7. O-O {[%emt 0:00:21]} d6 {[%emt 0:00:19]} 8. h3 {[%emt 0:00:09]} Bg7 {[%emt 0:00:26]} 9. Nc3 {[%emt 0:00:52]} O-O {[%emt 0:03:14]} 10. Be3 {[%emt 0:00:41]} Nd7 {[%emt 0:01:29]} 11. Rc1 {[%emt 0:02:35]} Nc5 {[%emt 0:05:43]} 12. Bb1 {[%emt 0:07:12]} Be6 {[%emt 0:11:43]} 13. b3 {[%emt 0:05:50]} Qa5 {[%emt 0:01:10]} 14. Qd2 {[%emt 0:16:05]} Rac8 {[%emt 0:02:59]} 15. Rfd1 {[%emt 0:04:03]} Rfd8 {[%emt 0:05:15]} 16. Nd5 {[%emt 0:04:44]} Qxd2 {[%emt 0:02:04]} 17. Rxd2 {[%emt 0:01:25]} Bxd5 {[%emt 0:11:19]} 18. exd5 {[%emt 0:01:56]} Nb4 {[%emt 0:10:27]} 19. Re2 {[%emt 0:15:06]} Rd7 {[%emt 0:00:45]} 20. Rce1 {[%emt 0:10:43]} Kf8 {[%emt 0:00:53]} 21. a3 {[%emt 0:03:23]} Nbd3 {[%emt 0:01:24]} 22. Bxd3 {[%emt 0:00:18]} Nxd3 {[%emt 0:00:03]} 23. Rd1 {[%emt 0:01:44]} Nc5 {[%emt 0:01:19]} 24. b4 {[%emt 0:01:43]} Na4 {[%emt 0:01:27]} 25. Rc2 {[%emt 0:02:55]} Rdc7 {[%emt 0:03:55]} 26. Rdc1 {[%emt 0:03:08]} Bb2 {[%emt 0:06:22]} 27. Rb1 {[%emt 0:00:29]} Bf6 {[%emt 0:02:01]} 28. Rbc1 {[%emt 0:00:39]} Nb2 {[%emt 0:04:34]} 29. Bxa7 {[%emt 0:03:31]} Rxc4 {[%emt 0:01:32]} 30. Rxc4 {[%emt 0:00:25]} Rxc4 {[%emt 0:01:43]} 31. Rxc4 {[%emt 0:01:31]} Nxc4 {[%emt 0:00:02]} 32. a4 {[%emt 0:00:17]} Bc3 {[%emt 0:02:02]} 33. b5 {[%emt 0:03:19]} Nb2 {[%emt 0:00:14]} 34. Ng5 {[%emt 0:00:51]} h6 {[%emt 0:03:42]} 35. Ne4 {[%emt 0:00:02]} Nxa4 {[%emt 0:00:27]} 36. Be3 {[%emt 0:03:41]} h5 {[%emt 0:01:07]} 37. Kf1 {[%emt 0:00:25]} f5 {[%emt 0:02:24]} 38. Ng5 {[%emt 0:01:00]} Bf6 {[%emt 0:03:42]} 39. Ne6+ {[%emt 0:00:35]} Ke8 {[%emt 0:00:36]} 40. Nf4 {[%emt 0:01:23]} Kf7 {[%emt 0:00:24]} 41. Ne6 {[%emt 0:31:02]} Ke8 {[%emt 0:39:51]} 42. Nf4 {[%emt 0:03:42]} Nc3 {[%emt 0:00:00]} 43. Nxg6 {[%emt 0:00:00]} Nxd5 {[%emt 0:00:00]} 44. Ke2 {[%emt 0:00:00]} Nxe3 {[%emt 0:00:00]} 45. fxe3 {[%emt 0:00:00]} e5 {[%emt 0:00:00]} 0-1

[Event "11th LCC FIDE Open 2019"]
[Site "London"]
[Date "2019.12.05"]
[Round "8.47"]
[White "Finn, Peter"]
[Black "Grigoryan, Meri"]
[Result "1/2-1/2"]
[ECO "C54"]
[WhiteElo "1895"]
[BlackElo "2050"]
[Annotator "NA RC"]
[PlyCount "160"]
[EventDate "2019.11.29"]
[EventType "swiss"]
[EventCountry "ENG"]
[SourceTitle "playchess.com"]
[Source "ChessBase"]
[SourceQuality "1"]
[TimeControl "40/5400+30:1800+30"]

1. e4 {[%emt 1:03:28]} e5 {[%emt 0:10:14]} 2. Nf3 {[%emt 0:00:09]} Nc6 {[%emt 0:00:07]} 3. Bc4 {[%emt 0:00:04]} Bc5 {[%emt 0:00:15]} 4. c3 {[%emt 0:00:12]} Nf6 {[%emt 0:00:48]} 5. d3 {[%emt 0:00:13]} O-O {[%emt 0:01:14]} 6. O-O {[%emt 0:00:39]} d5 {[%emt 0:01:52] C54: Giuoco Piano: 4 c3 Nf6, main lines with 5 d4 and 5 d3} 7. Bb5 {[%emt 0:07:20]} (7. exd5 Nxd5 8. Re1 Bg4 9. Nbd2 Nb6 10. h3 Bh5 11. Bb3 Qxd3 12. Nxe5 Qf5 13. Nef3 Rad8 14. Qe2 Nd5 15. Ne4 Bxf3 16. Qxf3 Qxf3 17. gxf3 {½-½ (31) Vachier Lagrave,M (2774)-Aronian,L (2758) Khanty-Mansiysk 2019}) 7... dxe4 {[%emt 0:08:06]} 8. Bxc6 {[%emt 0:01:36]} exf3 {[%emt 0:11:51]} 9. Bxf3 {[%emt 0:00:26]} Bf5 {[%emt 0:13:40]} 10. Re1 $146 {[%emt 0:44:45]} ({Predecessor:} 10. Bxb7 Bxd3 11. Bxa8 Bxf1 12. Qxf1 Qxa8 13. Be3 Qb8 14. Bxc5 {1-0 (30) Thee,M (799)-Knaack,C Neumuenster 2008}) 10... e4 {[%emt 0:07:01]} 11. dxe4 {[%emt 0:08:01]} Nxe4 {[%emt 0:12:11]} 12. Be3 {[%emt 0:09:31]} Qxd1 {[%emt 0:03:45]} 13. Bxd1 {[%emt 0:01:42]} Rad8 {[%emt 0:11:44]} 14. Na3 {[%emt 0:00:53]} Bxa3 {[%emt 0:07:41]} 15. bxa3 {[%emt 0:00:06]} Nxc3 {[%emt 0:00:13]} 16. Bf3 {[%emt 0:04:50]} Nd5 {[%emt 0:01:36]} 17. Bc5 {[%emt 0:01:16]} c6 {[%emt 0:00:20]} 18. Bxf8 {[%emt 0:00:17]} Kxf8 19. Rad1 {[%emt 0:00:52]} Be6 {[%emt 0:00:15]} 20. Rd4 {[%emt 0:01:40]} Rc8 {[%emt 0:01:41]} 21. h3 {[%emt 0:02:01]} Rd8 {[%emt 0:00:57]} 22. Red1 {[%emt 0:01:57]} Ke7 {[%emt 0:00:25]} 23. Kh2 {[%emt 0:02:21]} Kd6 {[%emt 0:00:48]} 24. Kg3 {[%emt 0:00:51]} Kc5 {[%emt 0:01:55]} 25. Rb4 {[%emt 0:02:45]} Rd7 {[%emt 0:00:46]} 26. Rc1+ {[%emt 0:00:03]} Kd6 {[%emt 0:00:05]} 27. Ra4 {[%emt 0:00:27]} b6 {[%emt 0:00:30]} 28. Rh4 {[%emt 0:00:35]} h6 {[%emt 0:01:08]} 29. Rhc4 {[%emt 0:01:23]} Rc7 {[%emt 0:01:04]} 30. R4c2 {[%emt 0:03:06]} Bf5 {[%emt 0:00:44]} 31. Re2 {[%emt 0:00:31]} Be6 {[%emt 0:00:30]} 32. Bxd5 {[%emt 0:00:21]} Bxd5 {[%emt 0:00:59]} 33. Re8 {[%emt 0:00:07]} Bxa2 {[%emt 0:01:15]} 34. Rd1+ {[%emt 0:00:08]} Bd5 {[%emt 0:00:09]} 35. Kf4 {[%emt 0:00:10]} b5 {[%emt 0:01:13]} 36. g4 {[%emt 0:01:12]} Kd7 {[%emt 0:01:04]} 37. Rg8 {[%emt 0:00:33]} Ke7 {[%emt 0:00:33]} 38. Rxg7 {[%emt 0:00:42]} Kf6 {[%emt 0:00:10]} 39. Rg8 {[%emt 0:00:21]} Re7 {[%emt 0:00:09]} 40. f3 {[%emt 0:01:34]} a5 {[%emt 0:00:58]} 41. h4 {[%emt 0:09:57]} Re2 {[%emt 0:01:18]} 42. Rd3 {[%emt 0:01:01]} Rh2 {[%emt 0:08:46]} 43. Kg3 {[%emt 0:00:40]} Rh1 {[%emt 0:02:45]} 44. Re3 {[%emt 0:05:26]} Be6 {[%emt 0:02:26] [#]} (44... b4 $11 {remains equal.}) 45. Ra8 {[%emt 0:02:01]} (45. f4 $1 $16 Rg1+ 46. Kf2) 45... a4 {[%emt 0:01:56]} 46. Rg8 {[%emt 0:00:08]} Rb1 {[%emt 0:02:31]} 47. f4 {[%emt 0:01:53]} Rg1+ {[%emt 0:05:30]} 48. Kf2 {[%emt 0:00:19]} Rh1 {[%emt 0:00:42]} 49. h5 {[%emt 0:02:29]} Bd5 {[%emt 0:04:28]} 50. Kg3 {[%emt 0:07:49]} (50. Ke2 $16) 50... Rg1+ {[%emt 0:00:42]} 51. Kh4 {[%emt 0:00:17]} Rh1+ {[%emt 0:01:29]} 52. Rh3 {[%emt 0:01:20]} Rf1 $2 (52... Rg1 $11) 53. Kg3 $4 {[%emt 0:04:01] [#]} (53. g5+ $18 {is the narrow road to win.} Ke7 54. gxh6) 53... Rf3+ $2 {[%emt 0:00:34]} ({Black should play} 53... b4 $1 $19 {[%cal Rb4a3][%mdl 512]} 54. g5+ (54. axb4 a3) 54... Kf5) 54. Kh2 {[%emt 0:00:08]} Rxf4 {[%emt 0:02:16] [#]} (54... Rf1 $1 $11 {remains equal.}) 55. g5+ $1 {[%emt 0:00:47]} hxg5 {[%emt 0:01:52]} 56. h6 Be4 {[%emt 0:00:25]} 57. h7 {[%emt 0:00:05]} Bxh7 {[%emt 0:00:30]} 58. Rxh7 {[%emt 0:00:05]} Rf2+ {[%emt 0:00:43]} 59. Kg1 {[%emt 0:00:19]} Rf3 {[%emt 0:00:15]} 60. Rh6+ {[%emt 0:00:13]} Kf5 {[%emt 0:00:05]} 61. Rxc6 {[%emt 0:00:29]} Kg4 {[%emt 0:00:29]} 62. Rc2 {[%emt 0:01:32]} Rxa3 {[%emt 0:00:31]} 63. Rg2+ {[%emt 0:00:11]} Kf4 {[%emt 0:00:12]} 64. R8xg5 $2 {[%emt 0:00:05]} (64. Rb2 $18 {has better winning chances.} Rg3+ 65. Kh2) 64... f5 {[%emt 0:00:35] [#]} 65. Rh5 $1 {[%emt 0:01:05]} Ra1+ {[%emt 0:00:50]} 66. Kh2 {[%emt 0:00:05]} Ke4 {[%emt 0:00:58]} 67. Rb2 {[%emt 0:01:15]} a3 {[%emt 0:00:22]} 68. Rb4+ {[%emt 0:01:17]} Ke3 {[%emt 0:00:40]} 69. Rxf5 $2 {[%emt 0:01:21]} (69. Rh3+ {mates} Kd2 70. Rxb5 f4 71. Rg5 Rd1 72. Rg2+ Kc1 73. Rxa3 Kb1 74. Rb3+ Ka1 75. Rf3) 69... a2 {[%emt 0:00:31]} 70. Rb3+ {[%emt 0:02:40]} Ke4 {[%emt 0:00:07]} 71. Rfxb5 {[%emt 0:01:08]} Rh1+ {[%emt 0:00:05]} 72. Kxh1 {[%emt 0:00:11]} a1=Q+ {[%emt 0:00:04]} 73. Kg2 {[%emt 0:00:47]} Qa2+ {[%emt 0:00:25]} 74. Kg3 {[%emt 0:00:20]} Qa7 {[%emt 0:00:49]} 75. Rb7 $11 {[%emt 0:01:00]} Qg1+ {[%emt 0:00:12]} 76. Kh4 {[%emt 0:00:18]} Qh1+ {[%emt 0:00:30]} 77. Kg5 {[%emt 0:00:14]} Qc1+ {[%emt 0:00:41]} 78. Kf6 {[%emt 0:00:23]} Qh6+ {[%emt 0:00:14]} 79. Ke7 {[%emt 0:00:17]} Qg7+ {[%emt 0:00:22]} 80. Kd8 {[%emt 0:00:38]} Qf8+ {[%emt 0:00:08]} 1/2-1/2

[Event "11th LCC FIDE Open 2019"]
[Site "London"]
[Date "2019.12.05"]
[Round "8.48"]
[White "Lohia, Sohum"]
[Black "Ho, Conrad"]
[Result "0-1"]
[ECO "B20"]
[WhiteElo "1889"]
[BlackElo "2046"]
[Annotator "NA"]
[PlyCount "66"]
[EventDate "2019.11.29"]
[EventType "swiss"]
[EventCountry "ENG"]
[SourceTitle "playchess.com"]
[Source "ChessBase"]
[SourceQuality "1"]
[TimeControl "40/5400+30:1800+30"]

1. e4 {[%emt 0:00:00]} c5 {[%emt 0:00:00]} 2. Ne2 {[%emt 0:00:41]} Nc6 {[%emt 0:00:28]} 3. g3 {[%emt 0:00:20]} g6 {[%emt 0:02:43]} 4. Bg2 {[%emt 0:00:08]} Bg7 {[%emt 0:00:11]} 5. c3 {[%emt 0:00:52]} e5 {[%emt 0:01:53]} 6. d3 {[%emt 0:00:53]} Nge7 {[%emt 0:02:01]} 7. Be3 {[%emt 0:00:20]} d6 {[%emt 0:02:27]} 8. h3 {[%emt 0:03:50]} O-O {[%emt 0:03:46]} 9. d4 {[%emt 0:01:30]} exd4 {[%emt 0:07:44]} 10. cxd4 {[%emt 0:00:11]} Qb6 {[%emt 0:01:50]} 11. Qb3 {[%emt 0:04:44]} cxd4 {[%emt 0:10:25]} 12. Qxb6 {[%emt 0:00:54]} axb6 {[%emt 0:00:09]} 13. Bf4 {[%emt 0:00:17]} d3 {[%emt 0:05:49]} 14. Nec3 {[%emt 0:00:31]} Nb4 {[%emt 0:04:43]} 15. Bxd6 {[%emt 0:06:20]} Nc2+ {[%emt 0:00:36]} 16. Kd2 {[%emt 0:00:08]} Nxa1 {[%emt 0:03:34]} 17. Bxe7 {[%emt 0:00:14]} Re8 {[%emt 0:00:29]} 18. Bd6 {[%emt 0:02:02]} Nc2 {[%emt 0:01:23]} 19. Kxd3 {[%emt 0:00:57]} Rd8 {[%emt 0:03:50]} 20. Kxc2 {[%emt 0:00:13]} Rxd6 {[%emt 0:00:07]} 21. f4 {[%emt 0:02:03]} Be6 {[%emt 0:09:39]} 22. e5 {[%emt 0:02:10]} Rd7 {[%emt 0:01:04]} 23. Na3 {[%emt 0:00:40]} Rad8 {[%emt 0:03:16]} 24. Kb1 {[%emt 0:02:20]} f6 {[%emt 0:02:03]} 25. exf6 {[%emt 0:03:27]} Bxf6 {[%emt 0:00:08]} 26. Ne4 {[%emt 0:00:46]} Bf5 {[%emt 0:02:57]} 27. g4 {[%emt 0:01:28]} Bxe4+ {[%emt 0:02:27]} 28. Bxe4 {[%emt 0:00:06]} Rd4 {[%emt 0:02:50]} 29. Bxb7 {[%emt 0:00:26]} Rxf4 {[%emt 0:00:07]} 30. Rc1 {[%emt 0:06:04]} Rf2 {[%emt 0:04:18]} 31. Nc2 {[%emt 0:01:23]} Rd3 {[%emt 0:02:36]} 32. Rh1 {[%emt 0:01:02]} Rfd2 {[%emt 0:02:28]} 33. Kc1 {[%emt 0:01:10]} Bg5 {[%emt 0:01:26]} 0-1

[Event "11th LCC FIDE Open 2019"]
[Site "London"]
[Date "2019.12.05"]
[Round "8.49"]
[White "Thatte, Nishchal"]
[Black "Vaddadi, Seshagiri"]
[Result "1/2-1/2"]
[ECO "B22"]
[WhiteElo "1723"]
[BlackElo "2042"]
[Annotator "NA RC"]
[PlyCount "55"]
[EventDate "2019.11.29"]
[EventType "swiss"]
[EventCountry "ENG"]
[SourceTitle "playchess.com"]
[Source "ChessBase"]
[SourceQuality "1"]
[TimeControl "40/5400+30:1800+30"]

1. e4 {[%emt 0:20:07]} c5 {[%emt 0:00:00]} 2. c3 {[%emt 0:00:05]} d5 {[%emt 0:00:54]} 3. exd5 {[%emt 0:00:16]} Qxd5 {[%emt 0:00:16]} 4. d4 {[%emt 0:00:08]} e5 {[%emt 0:04:03]} 5. dxe5 {[%emt 0:07:13]} Qxe5+ {[%emt 0:00:12]} 6. Be2 {[%emt 0:03:42]} Nc6 {[%emt 0:03:09]} 7. Nf3 {[%emt 0:00:27]} Qc7 {[%emt 0:01:30]} 8. O-O {[%emt 0:02:43]} Nf6 {[%emt 0:01:08]} 9. Re1 {[%emt 0:04:07]} Be7 {[%emt 0:00:06]} 10. Na3 {[%emt 0:01:40]} a6 {[%emt 0:01:47]} 11. g3 {[%emt 0:03:50]} Be6 {[%emt 0:03:15]} 12. Ng5 {[%emt 0:09:22]} Bf5 {[%emt 0:09:20]} 13. Bf4 {[%emt 0:01:00]} Qd8 {[%emt 0:00:58]} 14. Qb3 {[%emt 0:07:10]} O-O {[%emt 0:00:20]} 15. Qxb7 {[%emt 0:07:21]} Ne4 {[%emt 0:33:16]} 16. Nxe4 {[%emt 0:02:03]} Bxe4 {[%emt 0:00:17]} 17. Bc4 {[%emt 0:00:22]} Ra7 {[%emt 0:02:21]} 18. Qb3 {[%emt 0:01:43]} Na5 {[%emt 0:03:34]} 19. Qd1 {[%emt 0:02:43]} Rd7 {[%emt 0:00:32]} 20. Qe2 {[%emt 0:01:01]} Nxc4 {[%emt 0:02:44]} 21. Qxe4 {[%emt 0:03:20]} Nxb2 {[%emt 0:00:17]} 22. Reb1 {[%emt 0:07:08]} Nd3 {[%emt 0:03:38]} 23. Rb8 {[%emt 0:04:51]} Qa5 {[%emt 0:01:33]} 24. Qc6 {[%emt 0:07:49]} Qxc3 {[%emt 0:09:52]} 25. Qxd7 {[%emt 0:00:01]} Rxb8 {[%emt 0:02:19]} 26. Bxb8 {[%emt 0:00:11]} Qxa1+ {[%emt 0:00:11]} 27. Kg2 {[%emt 0:00:01]} Ne1+ {[%emt 0:07:49]} 28. Kg1 {[%emt 0:00:38]} 1/2-1/2

[Event "11th LCC FIDE Open 2019"]
[Site "London"]
[Date "2019.12.05"]
[Round "8.50"]
[White "Grey, Nicholas D"]
[Black "Flear, Christine"]
[Result "0-1"]
[ECO "B22"]
[WhiteElo "1692"]
[BlackElo "2035"]
[Annotator "NA RC"]
[PlyCount "56"]
[EventDate "2019.11.29"]
[EventType "swiss"]
[EventCountry "ENG"]
[SourceTitle "playchess.com"]
[Source "ChessBase"]
[SourceQuality "1"]
[TimeControl "40/5400+30:1800+30"]

1. e4 {[%emt 0:00:00]} c5 {[%emt 0:00:00]} 2. c3 {[%emt 0:00:15]} Nf6 {[%emt 0:00:00]} 3. e5 {[%emt 0:00:21]} Nd5 {[%emt 0:00:06]} 4. d4 {[%emt 0:00:33]} cxd4 {[%emt 0:00:09]} 5. Qxd4 {[%emt 0:01:56]} e6 {[%emt 0:00:39]} 6. Nf3 {[%emt 0:00:45]} Nc6 {[%emt 0:00:18]} 7. Qe4 {[%emt 0:00:20]} f5 {[%emt 0:00:27]} 8. Qe2 {[%emt 0:00:31]} b5 {[%emt 0:01:33]} 9. g3 {[%emt 0:04:11]} a5 {[%emt 0:09:45]} 10. Bg2 {[%emt 0:04:02]} Qc7 {[%emt 0:09:28]} 11. O-O {[%emt 0:08:14]} Ba6 {[%emt 0:02:39]} 12. Rd1 {[%emt 0:08:49]} b4 {[%emt 0:12:38]} 13. Qd2 {[%emt 0:22:48]} Be7 {[%emt 0:20:41]} 14. Nd4 {[%emt 0:11:42]} Qxe5 {[%emt 0:00:48]} 15. Re1 {[%emt 0:03:19]} Qf6 {[%emt 0:00:41]} 16. Bxd5 {[%emt 0:04:01]} exd5 {[%emt 0:00:54]} 17. Nf3 {[%emt 0:03:51]} d4 {[%emt 0:08:59]} 18. cxd4 {[%emt 0:01:10]} O-O {[%emt 0:05:03]} 19. d5 {[%emt 0:01:58]} Na7 {[%emt 0:00:33]} 20. Ne5 {[%emt 0:01:43]} Rfd8 {[%emt 0:02:29]} 21. Nf3 {[%emt 0:03:04]} Rac8 {[%emt 0:04:33]} 22. Qe3 {[%emt 0:02:02]} Bc5 {[%emt 0:01:48]} 23. Qg5 {[%emt 0:01:41]} Qf7 {[%emt 0:04:30]} 24. b3 {[%emt 0:04:33]} Re8 {[%emt 0:05:46]} 25. Bb2 {[%emt 0:01:53]} Rxe1+ {[%emt 0:01:27]} 26. Nxe1 {[%emt 0:00:25]} Bb7 {[%emt 0:00:26]} 27. Nd3 {[%emt 0:02:26]} h6 {[%emt 0:00:25]} 28. Qf4 {[%emt 0:00:47]} Qxd5 {[%emt 0:03:27]} 0-1

[Event "11th LCC FIDE Open 2019"]
[Site "London"]
[Date "2019.12.05"]
[Round "8.51"]
[White "Nilssen, Ellen Fredericia"]
[Black "Saidmurodov, Shahjahon"]
[Result "0-1"]
[ECO "A41"]
[WhiteElo "2004"]
[BlackElo "1782"]
[Annotator "NA RC"]
[PlyCount "84"]
[EventDate "2019.11.29"]
[EventType "swiss"]
[EventCountry "ENG"]
[SourceTitle "playchess.com"]
[Source "ChessBase"]
[SourceQuality "1"]
[TimeControl "40/5400+30:1800+30"]

1. d4 {[%emt 0:00:17]} d6 {[%emt 0:00:00]} 2. Nf3 {[%emt 0:00:09]} c6 {[%emt 0:00:00]} 3. c4 {[%emt 0:01:28]} Bg4 {[%emt 0:01:06]} 4. Nc3 {[%emt 0:03:52]} Qc7 {[%emt 0:01:29]} 5. e4 {[%emt 0:02:33]} Nd7 {[%emt 0:03:34]} 6. Be2 {[%emt 0:01:08]} e5 {[%emt 0:02:24]} 7. d5 {[%emt 0:01:59]} Ngf6 {[%emt 0:00:26]} 8. Be3 {[%emt 0:01:36]} Be7 {[%emt 0:04:02]} 9. O-O {[%emt 0:02:11]} h6 {[%emt 0:00:21]} 10. Nd2 {[%emt 0:02:29]} Bxe2 {[%emt 0:01:44]} 11. Qxe2 {[%emt 0:00:20]} g5 {[%emt 0:03:42]} 12. b4 {[%emt 0:05:17]} O-O {[%emt 0:08:15]} 13. h4 {[%emt 0:08:10]} cxd5 {[%emt 0:11:45]} 14. hxg5 {[%emt 0:02:36]} hxg5 {[%emt 0:00:59]} 15. Bxg5 {[%emt 0:00:20]} d4 {[%emt 0:00:36]} 16. Nb5 {[%emt 0:04:03]} Qd8 {[%emt 0:08:36]} 17. Bh6 {[%emt 0:07:23]} Re8 {[%emt 0:14:57]} 18. f4 {[%emt 0:11:13]} Bf8 {[%emt 0:03:32]} 19. Bxf8 {[%emt 0:05:38]} Nxf8 {[%emt 0:00:10]} 20. Qf3 {[%emt 0:02:34]} N8h7 {[%emt 0:00:27]} 21. g4 {[%emt 0:03:00]} a6 {[%emt 0:02:16]} 22. fxe5 {[%emt 0:13:45]} Rxe5 {[%emt 0:05:58]} 23. Nxd4 {[%emt 0:01:21]} Qb6 {[%emt 0:00:17]} 24. N2b3 {[%emt 0:01:56]} Rxe4 {[%emt 0:02:41]} 25. g5 {[%emt 0:00:40]} Rxd4 {[%emt 0:04:31]} 26. Nxd4 {[%emt 0:01:56]} Qxd4+ {[%emt 0:00:05]} 27. Kg2 {[%emt 0:00:15]} Nxg5 {[%emt 0:03:39]} 28. Qxf6 {[%emt 0:06:25]} Qg4+ {[%emt 0:02:17]} 29. Kh2 {[%emt 0:00:52]} Re8 {[%emt 0:06:45]} 30. Rf2 {[%emt 0:03:40]} Qh4+ {[%emt 0:02:44]} 31. Kg2 {[%emt 0:00:26]} Re3 {[%emt 0:02:47]} 32. Qd8+ {[%emt 0:00:28]} Kg7 {[%emt 0:00:37]} 33. Rxf7+ {[%emt 0:03:40]} Kxf7 {[%emt 0:00:08]} 34. Rf1+ {[%emt 0:00:05]} Kg7 {[%emt 0:02:47]} 35. Qf8+ {[%emt 0:01:08]} Kg6 {[%emt 0:00:57]} 36. Rf6+ {[%emt 0:00:25]} Kh7 {[%emt 0:00:09]} 37. Rf7+ {[%emt 0:02:40]} Nxf7 {[%emt 0:00:06]} 38. Qxf7+ {[%emt 0:00:03]} Kh6 {[%emt 0:00:12]} 39. Qf8+ {[%emt 0:00:33]} Kg5 {[%emt 0:00:30]} 40. Qg7+ {[%emt 0:00:29]} Kf5 {[%emt 0:00:27]} 41. Qf7+ {[%emt 0:01:10]} Qf6 {[%emt 0:00:10]} 42. Qd5+ {[%emt 0:00:06]} Re5 {[%emt 0:00:15]} 0-1